Workbook

Sheet View Screen
C2: =+'Data Screen'!C9 -> Pressure / Volume Calculator
K6: =+'Data Screen'!C16 -> Note this program is for guidance only and the calculations are approximations based on the data entered
K14: =+'Data Screen'!C17 -> We recommend the fitting of a measuring box for accurate analysis
B21: =+'Data Screen'!C10 -> Existing Maximum Pressure | E21: 163 | F21: =+'Calculation Screen'!F8 -> 163 | G21: =+'Calculation Screen'!G8 -> psi | H21: =+'Calculation Screen'!H8 -> 11.2307 | I21: =+'Calculation Screen'!I8 -> Bar
B22: =+'Data Screen'!C11 -> Required Pressure | C22: 165 | F22: =+'Calculation Screen'!F9 -> 165 | G22: =+'Calculation Screen'!G9 -> psi | H22: =+'Calculation Screen'!H9 -> 11.3685 | I22: =+'Calculation Screen'!I9 -> Bar
B24: =+'Data Screen'!C12 -> Existing Compressor Capacity | C24: 701 | F24: =+'Calculation Screen'!F11 -> 701 | G24: =+'Calculation Screen'!G11 -> cfm | H24: =+'Calculation Screen'!H11 -> 330.872 | I24: =+'Calculation Screen'!I11 -> l/s | J24: =+'Calculation Screen'!J11 -> 19.8383 | K24: =+'Calculation Screen'!K11 -> m3/m | L24: =+'Calculation Screen'!L11 -> 1190.298 | M24: =+'Calculation Screen'!M11 -> m3/h
B26: =+'Data Screen'!C13 -> Additional Capacity Required | F26: =+'Calculation Screen'!F13 -> 7.903032745 | G26: =+'Calculation Screen'!G13 -> cfm | H26: =+'Calculation Screen'!H13 -> 3.727845634 | I26: =+'Calculation Screen'!I13 -> l/s | J26: =+'Calculation Screen'!J13 -> 0.2236558267 | K26: =+K24 -> m3/m | L26: =+'Calculation Screen'!L13 -> 13.4193496 | M26: =+M24 -> m3/h
B28: =+'Data Screen'!C14 -> % Increase in Air Volume Required | F28: =+'Calculation Screen'!F15:G15 -> 0.01127394115
B30: =+'Data Screen'!C15 -> Total Required Capacity | F30: =+'Calculation Screen'!F17 -> 709.3516727 | G30: =+'Calculation Screen'!G17 -> cfm | H30: =+'Calculation Screen'!H17 -> 334.5998456 | I30: =+'Calculation Screen'!I17 -> l/s | J30: =+'Calculation Screen'!J17 -> 20.07465234 | K30: =+K24 -> m3/m | L30: =+'Calculation Screen'!L17 -> 1204.47914 | M30: =+M26 -> m3/h

Sheet Data Screen (hidden)
B1: =+C9 -> Pressure / Volume Calculator
B4: =+B5 -> English text | C4: =+C5 -> Translation Text
B5: English text | C5: Translation Text
B6: Click here to change Language | C6: Click here to change Language
B7: Click here for Help | C7: Click here for Help
B8: Click Here to return viewing screen | C8: Click Here to Return Main Screen
B9: Capacity / Pressure Relationship Calculator | C9: Pressure / Volume Calculator
B10: Existing Pressure | C10: Existing Maximum Pressure
B11: Pressure required | C11: Required Pressure
B12: Existing Capacity | C12: Existing Compressor Capacity
B13: Additional Capacity Required | C13: Additional Capacity Required
B14: % Increase in Air Volume Required | C14: % Increase in Air Volume Required
B15: Total Required Capacity | C15: Total Required Capacity
B16: Note this program only is for guidance only and the calculations are approximations based on the data entered | C16: Note this program is for guidance only and the calculations are approximations based on the data entered
B17: We would recommend the fitting of a measuring box for more accurate analysis | C17: We recommend the fitting of a measuring box for accurate analysis
C19: =+C8 -> Click Here to Return Main Screen

Sheet Help (hidden)
M2: =+'Data Screen'!C8 -> Click Here to Return Main Screen

Sheet Calculation Screen (hidden)
B6: Capacity / Pressure Relationship Calculator
B8: Existing Pressure | F8: =+'View Screen'!E21 -> 163 | G8: psi | H8: =F8*0.0689 -> 11.2307 | I8: Bar
B9: Pressure required | F9: =+'View Screen'!C22 -> 165 | G9: psi | H9: =F9*0.0689 -> 11.3685 | I9: Bar
B11: Existing Capacity | F11: =+'View Screen'!C24 -> 701 | G11: cfm | H11: =F11*0.472 -> 330.872 | I11: l/s | J11: =F11*0.0283 -> 19.8383 | K11: m3/m | L11: =+J11*60 -> 1190.298 | M11: m3/h
B13: Additional Capacity Required | F13: =H13*2.12 -> 7.903032745 | G13: cfm | H13: =H17-H11 -> 3.727845634 | I13: l/s | J13: =F13*0.0283 -> 0.2236558267 | K13: m3/m | L13: =+J13*60 -> 13.4193496 | M13: m3/h
B15: % Increase in Air Volume Required | F15: =+F13/F11 -> 0.01127394115
B17: Total Required Capacity | F17: =H17*2.12 -> 709.3516727 | G17: cfm | H17: =H11*(H9+1)/(H8+1) -> 334.5998456 | I17: l/s | J17: =F17*0.0283 -> 20.07465234 | K17: m3/m | L17: =+J17*60 -> 1204.47914 | M17: m3/h
